fUST/lending_fUST_20240809
["ID","MTS","AMOUNT","RATE_DAILY","PERIOD"]
[334546334,1723186724058,209.31521257,9.999e-05,2]
[334546335,1723186754098,209.31521257,9.999e-05,2]
[334546336,1723186773283,274.07708089,0.0001212,2]
[334546337,1723186774007,361.83787098,0.0001212,2]
[334546338,1723186796565,208.57887339,0.0001212,2]
[334546341,1723186809158,1150.0,0.00025,60]
[334546342,1723186873463,150.5,0.00024759,120]
[334546343,1723186873973,150.5,0.00024749,120]
[334546344,1723186874460,154.35,0.00024739,120]
[334546345,1723186906194,169.111304,0.00014247,2]
[334546350,1723187205622,532.76753457,0.00027,120]
[334546353,1723187348175,-234.257917,0.00015511,2]
[334546354,1723187348196,-1717.1638182,0.00015708,2]
[334546355,1723187348219,-174.61974906,0.00015712,2]
[334546356,1723187348241,-598.3209804,0.00015752,2]
[334546357,1723187348262,-159.33909934,0.00016159,2]
[334546358,1723187348286,-300.0,0.00016308,2]
[334546359,1723187348308,-154.77557542,0.00016309,2]
[334546360,1723187348334,-387.49042442,0.00016309,2]
[334546361,1723187364783,179.826804,0.00014247,2]
[334546405,1723187433166,-305.44387252,0.00016095,2]
[334546406,1723187433176,-154.84745468,0.00016159,2]
[334546407,1723187433185,-147.27657574,0.00016159,2]
[334546409,1723187433198,-785.45306971,0.00016159,2]
[334546411,1723187433207,-154.88378153,0.00016309,2]
[334546412,1723187433217,-300.0,0.00016867,2]
[334546413,1723187433226,-3560.10501619,0.00016868,2]
[334546446,1723187438371,-2887.83715123,0.00016868,2]
[334546456,1723187438505,-2007.81740008,0.00016868,2]
[334546457,1723187438524,-24900.0,0.00016926,2]
[334546458,1723187438537,-250.0,0.00017028,2]
[334546459,1723187438548,-250.0,0.00017074,2]
[334546460,1723187438558,-250.0,0.00017121,2]
[334546461,1723187438569,-250.0,0.00017168,2]
[334546462,1723187438580,-250.0,0.00017215,2]
[334546463,1723187438590,-250.0,0.00017261,2]
[334546464,1723187438602,-250.0,0.00017308,2]
[334546465,1723187438614,-250.0,0.00017355,2]
[334546466,1723187438627,-250.0,0.00017401,2]
[334546467,1723187438639,-250.0,0.00017448,2]
[334546468,1723187438650,-250.0,0.00017495,2]
[334546469,1723187438659,-250.0,0.00017542,2]
[334546470,1723187438671,-250.0,0.00017588,2]
[334546471,1723187438683,-250.0,0.00017635,2]
[334546472,1723187438696,-250.0,0.00017682,2]
[334546473,1723187438708,-250.0,0.00017728,2]
[334546474,1723187438721,-250.0,0.00017775,2]
[334546475,1723187438732,-250.0,0.00017822,2]
[334546476,1723187438743,-250.0,0.00017869,2]
[334546477,1723187438755,-250.0,0.00017915,2]
[334546478,1723187438768,-420.0,0.00018554,2]
[334546479,1723187438779,-378.4463386,0.00018575,2]
[334546480,1723187438789,-35031.14789157,0.00018989,2]
[334546481,1723187438800,-35031.14789157,0.00018989,2]
[334546482,1723187438811,-154.3087748,0.00019041,2]
[334546483,1723187438822,-20793.66255178,0.00019101,2]
[334546484,1723187438833,-9114.71769999,0.00019101,2]
[334546485,1723187438845,-9648.27796999,0.00019139,2]
[334546486,1723187438856,-1764.53474525,0.00019155,2]
[334546487,1723187438866,-2163.84623957,0.00019167,2]
[334546488,1723187438878,-2140.4177363,0.00019167,2]
[334546489,1723187438888,-1162.86940617,0.00019167,2]
[334546490,1723187438899,-7025.57137032,0.00019177,2]
[334546491,1723187438910,-1500.0,0.00019177,2]
[334546492,1723187438920,-42366.16356883,0.00019177,2]
[334546493,1723187438931,-1382.92970052,0.00019177,2]
[334546494,1723187438944,-277.26634811,0.00019177,2]
[334546495,1723187438957,-568.89588544,0.00019177,2]
[334546496,1723187438968,-3087.63872233,0.00019177,2]
[334546497,1723187438979,-26417.224716,0.00019202,2]
[334546498,1723187438990,-1299.17658537,0.00019256,2]
[334546499,1723187439000,-293.54215785,0.00019256,2]
[334546500,1723187439011,-154.77557542,0.00019256,2]
[334546501,1723187439030,-414.16414531,0.00019256,2]
[334546502,1723187439042,-319.90937201,0.00019256,2]
[334546503,1723187439052,-1795.64982845,0.00019256,2]
[334546504,1723187439063,-154.88378153,0.00019256,2]
[334546505,1723187439074,-264.06656927,0.00019447,2]
[334546506,1723187439085,-186.49859335,0.00019451,2]
[334546507,1723187439097,-285.95482479,0.00019451,2]
[334546508,1723187439107,-188.34866886,0.00019451,2]
[334546509,1723187439117,-162.84718426,0.00019451,2]
[334546510,1723187439128,-156.82503371,0.00019451,2]
[334546511,1723187439139,-1610.68802731,0.00019451,2]
[334546512,1723187439150,-174.54270234,0.00019477,2]
[334546513,1723187439162,-287.48390331,0.00019477,2]
[334546514,1723187439173,-175.91709388,0.00019477,2]
[334546515,1723187439183,-240.94479863,0.00019477,2]
[334546516,1723187439194,-601.1945502,0.00019477,2]
[334546517,1723187439206,-189.50767068,0.00019477,2]
[334546518,1723187439217,-780.99414722,0.00019477,2]
[334546519,1723187439228,-1391.04403282,0.00019537,2]
[334546520,1723187439242,-2001.64,0.00019537,2]
[334546521,1723187439259,-23024.54068318,0.00019537,2]
[334546522,1723187439273,-205.20449904,0.00019547,2]
[334546523,1723187439284,-203.37357705,0.00019547,2]
[334546524,1723187439296,-201.4596201,0.00019547,2]
[334546525,1723187439307,-183.12142007,0.00019547,2]
[334546526,1723187439320,-309.52024362,0.00019547,2]
[334546527,1723187439332,-393.37285489,0.00019989,2]
[334546528,1723187439344,-500.0,0.00019989,2]
[334546529,1723187439355,-500.0,0.00019989,2]
[334546530,1723187439366,-164.26865034,0.00019989,2]
[334546531,1723187439377,-500.0,0.00019989,2]
[334546532,1723187439388,-500.0,0.00019989,2]
[334546533,1723187439399,-500.0,0.00019989,2]
[334546534,1723187439410,-500.0,0.00019989,2]
[334546535,1723187439420,-290.05336593,0.00019989,2]
[334546536,1723187439435,-500.0,0.00019989,2]
[334546537,1723187439446,-447.91046188,0.00019989,2]
[334546538,1723187439457,-500.0,0.00019989,2]
[334546539,1723187439468,-500.0,0.00019989,2]
[334546540,1723187439479,-500.0,0.00019989,2]
[334546541,1723187439490,-500.0,0.00019989,2]
[334546542,1723187439501,-500.0,0.00019989,2]
[334546543,1723187439513,-500.0,0.00019989,2]
[334546544,1723187439524,-500.0,0.00019989,2]
[334546545,1723187439535,-500.0,0.00019989,2]
[334546546,1723187439545,-500.0,0.00019989,2]
[334546547,1723187439556,-500.0,0.00019989,2]
[334546548,1723187439568,-500.0,0.00019989,2]
[334546549,1723187439579,-500.0,0.00019989,2]
[334546550,1723187439590,-68080.66096844,0.0001999,11]
[334546551,1723187439600,-26417.224716,0.0001999,2]
[334546552,1723187439611,-727.4693855,0.00019999,2]
[334546553,1723187439622,-522.63402036,0.00019999,2]
[334546554,1723187439634,-808.0041696,0.00019999,2]
[334546555,1723187439644,-156.45284227,0.0002,2]
[334546556,1723187439655,-645.64533055,0.0002,2]
[334546557,1723187439666,-1364.15976013,0.0002,2]
[334546558,1723187439676,-294.28393168,0.0002,2]
[334546559,1723187439688,-188.09055485,0.0002,2]
[334546560,1723187439699,-1444.60456197,0.0002,2]
[334546561,1723187439710,-587.0,0.00020409,2]
[334546562,1723187439722,-360.10332926,0.00020721,2]
[334546563,1723187439732,-301.1738371,0.00020721,2]
[334546564,1723187439743,-264.06656924,0.00020784,2]
[334546565,1723187439755,-154.77557542,0.00020999,2]
[334546566,1723187439766,-179.35304154,0.00020999,2]
[334546567,1723187439777,-154.77557542,0.00020999,2]
[334546568,1723187439788,-179.35304154,0.00020999,2]
[334546569,1723187439801,-150.112234,0.00021,2]
[334546571,1723187439811,-297.15758286,0.00021,2]
[334546572,1723187439821,-150.112233,0.000215,5]
[334546573,1723187439832,-26417.224716,0.00021512,3]
[334546574,1723187439842,-2000.0,0.00021598,2]
[334546575,1723187439853,-1285.11282224,0.00021598,2]
[334546576,1723187439863,-157.90486107,0.00021609,2]
[334546577,1723187439873,-307.30419818,0.00021609,2]
[334546578,1723187439882,-1713.65897753,0.00021916,2]
[334546580,1723187439892,-150.112233,0.00022,5]
[334546582,1723187439901,-264.06656924,0.0002212,2]
[334546584,1723187439911,-823.0,0.0002245,2]
[334546585,1723187439920,-150.112233,0.000225,4]
[334546586,1723187439930,-150.112235,0.00023,4]
[334546587,1723187439940,-150.112233,0.00023,4]
[334546588,1723187439950,-1008.849004,0.00023,2]
[334546589,1723187439959,-234.257917,0.00023267,2]
[334546590,1723187439969,-151.0,0.00023294,2]
[334546592,1723187439980,-151.0,0.00023294,2]
[334546602,1723187440210,-150.112233,0.000233,2]
[334546603,1723187440226,-264.06656924,0.00023457,2]
[334546604,1723187440238,-26417.224716,0.0002348,3]
[334546605,1723187440249,-26417.224716,0.0002349,3]
[334546606,1723187440259,-150.112233,0.000235,3]
[334546607,1723187440270,-150.112233,0.000235,2]
[334546608,1723187440279,-1000.0,0.000235,2]
[334546609,1723187440290,-308.87202,0.00023779,7]
[334546610,1723187440299,-308.87202,0.00023779,7]
[334546611,1723187440309,-464.804545,0.00023779,7]
[334546612,1723187440319,-464.804545,0.00023779,7]
[334546613,1723187440328,-1652.871826,0.00023779,7]
[334546614,1723187440339,-1652.871826,0.00023779,7]
[334546615,1723187440348,-594.030162,0.00023779,7]
[334546616,1723187440358,-594.030162,0.00023779,7]
[334546617,1723187440367,-150.112233,0.000238,2]
[334546618,1723187440377,-2000.0,0.000239,2]
[334546619,1723187440387,-151.0,0.00023957,2]
[334546620,1723187440396,-151.0,0.00023957,2]
[334546621,1723187440405,-306.0,0.00023973,2]
[334546622,1723187440414,-26417.224716,0.0002399,3]
[334546623,1723187440423,-4351.71715984,0.00024,30]
[334546624,1723187440436,-1000.0,0.00024,24]
[334546625,1723187440446,-150.112233,0.00024,3]
[334546626,1723187440457,-1000.0,0.00024,2]
[334546627,1723187440470,-150.112233,0.000241,4]
[334546628,1723187440480,-153.0,0.00024247,2]
[334546629,1723187440490,-153.0,0.00024247,2]
[334546630,1723187440500,-153.0,0.00024247,2]
[334546631,1723187440510,-153.0,0.00024247,2]
[334546632,1723187440520,-153.0,0.00024247,2]
[334546633,1723187440530,-153.0,0.00024247,2]
[334546634,1723187440539,-153.0,0.00024247,2]
[334546635,1723187440549,-153.0,0.00024247,2]
[334546636,1723187440559,-150.112233,0.000244,4]
[334546637,1723187440569,-150.52070897,0.00024406,2]
[334546638,1723187440579,-1540.183,0.00024478,2]
[334546639,1723187440589,-150.112233,0.000245,4]
[334546640,1723187440599,-1000.0,0.000245,2]
[334546641,1723187440609,-160.0,0.00024513,3]
[334546642,1723187440619,-150.112233,0.000246,2]
[334546643,1723187440629,-151.0,0.0002462,2]
[334546644,1723187440639,-151.0,0.0002462,2]
[334546645,1723187440648,-1158.64274756,0.00024647,18]
[334546646,1723187440658,-294.5666805,0.00024658,2]
[334546647,1723187440668,-162.1950708,0.00024658,2]
[334546648,1723187440678,-153.0,0.00024658,2]
[334546649,1723187440687,-153.0,0.00024658,2]
[334546650,1723187440697,-207.2250634,0.00024658,2]
[334546651,1723187440707,-1152.0,0.00024695,2]
[334546652,1723187440717,-1000.0,0.00024745,2]
[334546653,1723187440726,-26417.224716,0.00024747,3]
[334546654,1723187440736,-301.31853844,0.00024756,2]
[334546655,1723187440746,-267.8162636,0.00024767,2]
[334546656,1723187440755,-267.8162636,0.00024767,2]
[334546657,1723187440766,-267.8162636,0.00024767,2]
[334546658,1723187440775,-267.8162636,0.00024767,2]
[334546659,1723187440785,-294.5666805,0.00024767,2]
[334546660,1723187440794,-294.5666805,0.00024767,2]
[334546661,1723187440804,-207.2250634,0.00024767,2]
[334546662,1723187440813,-294.5666805,0.00024767,2]
[334546663,1723187440823,-294.5666805,0.00024767,2]
[334546664,1723187440835,-207.2250634,0.00024767,2]
[334546665,1723187440844,-294.5666805,0.00024767,2]
[334546666,1723187440854,-294.5666805,0.00024767,2]
[334546667,1723187440865,-207.2250634,0.00024767,2]
[334546668,1723187440875,-294.5666805,0.00024767,2]
[334546669,1723187440884,-207.2250634,0.00024767,2]
[334546670,1723187440895,-294.5666805,0.00024767,2]
[334546671,1723187440904,-294.5666805,0.00024767,2]
[334546672,1723187440914,-207.2250634,0.00024767,2]
[334546673,1723187440924,-533.017598,0.00024767,2]
[334546674,1723187440933,-207.2250634,0.00024767,2]
[334546675,1723187440943,-207.2250634,0.00024767,2]
[334546676,1723187440952,-207.2250634,0.00024767,2]
[334546677,1723187440962,-267.8162636,0.00024767,2]
[334546678,1723187440971,-306.0,0.00024767,2]
[334546679,1723187440980,-267.8162636,0.00024767,2]
[334546680,1723187440989,-267.8162636,0.00024767,2]
[334546681,1723187440999,-1000.0,0.00024771,2]
[334546682,1723187441008,-1000.0,0.00024772,2]
[334546683,1723187441018,-26417.224716,0.00024774,3]
[334546684,1723187441028,-308.87202,0.00024775,7]
[334546685,1723187441038,-308.87202,0.00024775,7]
[334546686,1723187441047,-464.804545,0.00024775,7]
[334546687,1723187441057,-464.804545,0.00024775,7]
[334546688,1723187441066,-1652.871826,0.00024775,7]
[334546689,1723187441075,-1652.871826,0.00024775,7]
[334546690,1723187441085,-594.030162,0.00024775,7]
[334546691,1723187441094,-594.030162,0.00024775,7]
[334546692,1723187441104,-1000.0,0.00024777,2]
[334546693,1723187441113,-10819.72649963,0.00024779,2]
[334546694,1723187441122,-1000.0,0.00024781,2]
[334546695,1723187441132,-1000.0,0.00024783,2]
[334546696,1723187441141,-496.624555,0.00024784,7]
[334546697,1723187441150,-496.624555,0.00024784,7]
[334546698,1723187441161,-571.573302,0.00024784,7]
[334546699,1723187441170,-571.573302,0.00024784,7]
[334546700,1723187441180,-151.0,0.00024784,7]
[334546702,1723187441189,-151.0,0.00024784,7]
[334546704,1723187441199,-162.491998,0.00024784,7]
[334546705,1723187441208,-151.0,0.00024784,7]
[334546707,1723187441220,-151.0,0.00024784,7]
[334546709,1723187441229,-162.491998,0.00024784,7]
[334546711,1723187441238,-155.53101,0.00024784,7]
[334546713,1723187441248,-519.407902,0.00024784,7]
[334546715,1723187441258,-519.407902,0.00024784,7]
[334546717,1723187441270,-1170.804986,0.00024784,7]
[334546719,1723187441279,-1170.804986,0.00024784,7]
[334546721,1723187441287,-151.0,0.00024784,7]
[334546723,1723187441297,-524.784304,0.00024784,7]
[334546725,1723187441306,-524.784304,0.00024784,7]
[334546727,1723187441315,-152.069158,0.00024784,7]
[334546729,1723187441325,-151.0,0.00024784,7]
[334546731,1723187441334,-551.48876,0.00024784,7]
[334546733,1723187441343,-551.48876,0.00024784,7]
[334546735,1723187441352,-151.0,0.00024784,7]
[334546737,1723187441361,-2620.62004,0.00024784,7]
[334546739,1723187441371,-2620.62004,0.00024784,7]
[334546741,1723187441380,-1997.886861,0.00024784,7]
[334546743,1723187441389,-1997.886861,0.00024784,7]
[334546744,1723187441398,-183.203398,0.00024784,2]
[334546746,1723187441407,-183.203398,0.00024784,2]
[334546748,1723187441417,-1000.0,0.00024787,2]
[334546750,1723187441427,-2837.41643727,0.00024793,2]
[334546752,1723187441440,-264.06656924,0.00024793,2]
[334546754,1723187441449,-300.0,0.00024801,2]
[334546756,1723187441459,-1000.0,0.00024801,2]
[334546758,1723187441470,-153.0,0.00024822,2]
[334546760,1723187441480,-153.0,0.00024822,2]
[334546762,1723187441489,-294.5666805,0.00024822,2]
[334546764,1723187441499,-153.0,0.00024822,2]
[334546766,1723187441510,-153.0,0.00024822,2]
[334546768,1723187441522,-294.5666805,0.00024822,2]
[334546771,1723187441531,-207.2250634,0.00024822,2]
[334546773,1723187441541,-294.5666805,0.00024822,2]
[334546775,1723187441550,-207.2250634,0.00024822,2]
[334546777,1723187441560,-1000.0,0.00024831,2]
[334546779,1723187441569,-1000.0,0.00024837,2]
[334546781,1723187441578,-153.0,0.00024849,2]
[334546783,1723187441587,-294.5666805,0.00024849,2]
[334546785,1723187441597,-153.0,0.00024849,2]
[334546787,1723187441606,-294.5666805,0.00024849,2]
[334546789,1723187441615,-207.2250634,0.00024849,2]
[334546791,1723187441625,-153.0,0.00024849,2]
[334546793,1723187441635,-153.0,0.00024849,2]
[334546795,1723187441644,-294.5666805,0.00024849,2]
[334546797,1723187441654,-207.2250634,0.00024849,2]
[334546799,1723187441663,-1000.0,0.00024871,2]
[334546801,1723187441672,-1000.0,0.00024875,2]
[334546803,1723187441682,-1000.0,0.00024879,2]
[334546805,1723187441691,-1000.0,0.0002488,2]
[334546807,1723187441700,-1000.0,0.00024885,2]
[334546809,1723187441709,-151.0,0.0002489,7]
[334546811,1723187441719,-587.962494,0.0002489,7]
[334546813,1723187441728,-587.962494,0.0002489,7]
[334546815,1723187441737,-151.0,0.0002489,7]
[334546817,1723187441747,-233.385139,0.0002489,7]
[334546819,1723187441756,-233.385139,0.0002489,7]
[334546821,1723187441766,-152.946473,0.0002489,7]
[334546823,1723187441776,-151.0,0.0002489,7]
[334546825,1723187441785,-151.0,0.0002489,7]
[334546826,1723187441795,-151.0,0.0002489,7]
[334546828,1723187441804,-151.0,0.0002489,7]
[334546830,1723187441814,-151.0,0.0002489,7]
[334546832,1723187441823,-151.0,0.0002489,7]
[334546834,1723187441832,-151.0,0.0002489,7]
[334546836,1723187441841,-151.0,0.0002489,7]
[334546838,1723187441853,-496.624555,0.0002489,7]
[334546840,1723187441862,-496.624555,0.0002489,7]
[334546841,1723187441873,-571.573302,0.0002489,7]
[334546842,1723187441882,-571.573302,0.0002489,7]
[334546843,1723187441892,-168.966782,0.0002489,7]
[334546844,1723187441901,-186.848728,0.0002489,7]
[334546845,1723187441911,-162.491998,0.0002489,7]
[334546846,1723187441920,-154.227697,0.0002489,7]
[334546847,1723187441930,-151.0,0.0002489,7]
[334546848,1723187441939,-162.491998,0.0002489,7]
[334546849,1723187441948,-519.407902,0.0002489,7]
[334546850,1723187441957,-519.407902,0.0002489,7]
[334546851,1723187441966,-1170.804986,0.0002489,7]
[334546852,1723187441975,-1170.804986,0.0002489,7]
[334546853,1723187441985,-151.0,0.0002489,7]
[334546854,1723187441994,-524.784304,0.0002489,7]
[334546855,1723187442004,-524.784304,0.0002489,7]
[334546856,1723187442014,-551.48876,0.0002489,7]
[334546858,1723187442024,-551.48876,0.0002489,7]
[334546860,1723187442033,-151.0,0.0002489,7]
[334546862,1723187442043,-2620.62004,0.0002489,7]
[334546864,1723187442052,-2620.62004,0.0002489,7]
[334546866,1723187442062,-1997.886861,0.0002489,7]
[334546868,1723187442071,-1997.886861,0.0002489,7]
[334546870,1723187442081,-183.203398,0.0002489,2]
[334546872,1723187442090,-183.203398,0.0002489,2]
[334546874,1723187442100,-308.87202,0.0002489,7]
[334546876,1723187442109,-308.87202,0.0002489,7]
[334546878,1723187442119,-464.804545,0.0002489,7]
[334546880,1723187442129,-464.804545,0.0002489,7]
[334546882,1723187442138,-1652.871826,0.0002489,7]
[334546885,1723187442148,-1652.871826,0.0002489,7]
[334546887,1723187442158,-594.030162,0.0002489,7]
[334546889,1723187442168,-594.030162,0.0002489,7]
[334546891,1723187442177,-80818.93941563,0.0002489,3]
[334546898,1723187442236,-311.01915351,0.00019451,2]
[334546900,1723187442246,-154.77557542,0.00019547,2]
[334546902,1723187442255,-5093.5382291,0.00024565,2]
[334546904,1723187442266,-5093.5382291,0.00024827,2]
[334546906,1723187442275,-150.112233,0.000249,5]
[334546908,1723187442284,-1000.0,0.00024902,2]
[334546910,1723187442294,-1000.0,0.00024904,2]
[334546912,1723187442303,-1074.66071709,0.00024906,2]
[334546914,1723187442313,-300.0,0.00024915,2]
[334546916,1723187442322,-1000.0,0.0002493,2]
[334546918,1723187442334,-453.0,0.00024932,2]
[334546920,1723187442344,-1000.0,0.00024932,2]
[334546923,1723187442355,-160.0,0.00024949,4]
[334546924,1723187442364,-1000.0,0.00024964,2]
[334546926,1723187442373,-1000.0,0.00024969,2]
[334546927,1723187442382,-1000.0,0.00024981,2]
[334546928,1723187442391,-151.0,0.0002499,7]
[334546929,1723187442401,-151.0,0.0002499,7]
[334546930,1723187442410,-151.0,0.0002499,7]
[334546931,1723187442420,-151.0,0.0002499,7]
[334546932,1723187442432,-587.962494,0.0002499,7]
[334546933,1723187442441,-587.962494,0.0002499,7]
[334546934,1723187442451,-151.0,0.0002499,7]
[334546935,1723187442460,-233.385139,0.0002499,7]
[334546936,1723187442469,-233.385139,0.0002499,7]
[334546937,1723187442478,-151.0,0.0002499,7]
[334546938,1723187442487,-151.0,0.0002499,7]
[334546939,1723187442497,-151.0,0.0002499,7]
[334546940,1723187442506,-174.150699,0.0002499,7]
[334546942,1723187442516,-151.0,0.0002499,7]
[334546943,1723187442525,-151.0,0.0002499,7]
[334546945,1723187442534,-1000.0,0.00024997,2]
[334546947,1723187442544,-150.01,0.00024999,2]
[334546948,1723187442553,-2993.10206773,0.00024999,2]
[334546950,1723187442565,-22184.92060349,0.00025,11]
[334546952,1723187442574,-113511.45033949,0.00025,2]
[334546991,1723187443136,-1992.83567899,0.00019167,2]
[334546992,1723187443146,-290.8235914,0.00019256,2]
[334546993,1723187443156,-845.99366792,0.00019451,2]
[334546994,1723187443166,-151.0,0.00024,7]
[334546995,1723187443176,-151.0,0.00024784,7]
[334546996,1723187443186,-151.0,0.0002489,7]
[334546997,1723187443195,-295323.98428334,0.00025,2]
[334546998,1723187443205,-23205.7965051,0.00025,30]
[334546999,1723187443214,-189.68346517,0.00025,2]
[334547000,1723187443224,-1000.0,0.00025,25]
[334547001,1723187443233,-154.79103211,0.00025,2]
[334547002,1723187443243,-154.95445241,0.00025,2]
[334547003,1723187443253,-321.13,0.00025,7]
[334547004,1723187443262,-9632.85,0.00025,14]
[334547005,1723187443272,-718.9,0.00025,14]
[334547006,1723187443282,-151.0,0.00025,7]
[334547008,1723187443292,-151.0,0.00025,7]
[334547009,1723187443301,-151.0,0.00025,7]
[334547011,1723187443310,-587.962494,0.00025,7]
[334547013,1723187443320,-587.962494,0.00025,7]
[334547015,1723187443330,-151.0,0.00025,7]
[334547017,1723187443340,-233.385139,0.00025,7]
[334547019,1723187443350,-233.385139,0.00025,7]
[334547020,1723187443361,-151.0,0.00025,7]
[334547021,1723187443371,-151.0,0.00025,7]
[334547022,1723187443381,-151.0,0.00025,7]
[334547023,1723187443390,-2300.699599,0.00025,2]
[334547024,1723187443400,-151.0,0.00025,7]
[334547025,1723187443409,-170.191388,0.00025,7]
[334547026,1723187443419,-2754.0,0.00025,2]
[334547027,1723187443429,-151.0,0.00025,7]
[334547028,1723187443440,-151.0,0.00025,7]
[334547029,1723187443450,-151.0,0.00025,7]
[334547030,1723187443460,-151.0,0.00025,7]
[334547031,1723187443470,-453.0,0.00025,2]
[334547032,1723187443480,-496.624555,0.00025,7]
[334547033,1723187443490,-571.573302,0.00025,7]
[334547034,1723187443500,-571.573302,0.00025,7]
[334547035,1723187443510,-162.491998,0.00025,7]
[334547036,1723187443520,-278.310743,0.00025,7]
[334547037,1723187443530,-162.491998,0.00025,7]
[334547038,1723187443539,-519.407902,0.00025,7]
[334547039,1723187443549,-519.407902,0.00025,7]
[334547040,1723187443559,-1170.804986,0.00025,7]
[334547041,1723187443570,-1170.804986,0.00025,7]
[334547042,1723187443580,-151.0,0.00025,7]
[334547043,1723187443590,-524.784304,0.00025,7]
[334547044,1723187443600,-524.784304,0.00025,7]
[334547045,1723187443609,-551.48876,0.00025,7]
[334547046,1723187443618,-551.48876,0.00025,7]
[334547047,1723187443627,-151.0,0.00025,7]
[334547048,1723187443637,-2620.62004,0.00025,7]
[334547049,1723187443646,-2620.62004,0.00025,7]
[334547050,1723187443655,-1997.886861,0.00025,7]
[334547051,1723187443665,-1997.886861,0.00025,7]
[334547052,1723187443675,-183.203398,0.00025,2]
[334547053,1723187443686,-183.203398,0.00025,2]
[334547054,1723187443694,-308.87202,0.00025,7]
[334547055,1723187443704,-308.87202,0.00025,7]
[334547056,1723187443714,-464.804545,0.00025,7]
[334547057,1723187443724,-464.804545,0.00025,7]
[334547058,1723187443733,-1652.871826,0.00025,7]
[334547059,1723187443743,-1000.0,0.00025,2]
[334547060,1723187443755,-1652.871826,0.00025,7]
[334547061,1723187443766,-594.030162,0.00025,7]
[334547062,1723187443776,-160.0,0.00025,2]
[334547063,1723187443786,-594.030162,0.00025,7]
[334547064,1723187443795,-151.0,0.00025,7]
[334547065,1723187443804,-620.05097092,0.00025005,2]
[334547066,1723187443944,-500.01,0.00025151,2]
[334547067,1723187443954,-533.47,0.00025151,2]
[334547068,1723187443967,-150.112233,0.000252,5]
[334547069,1723187443976,-294.5666805,0.00025205,2]
[334547070,1723187443986,-294.5666805,0.00025205,2]
[334547071,1723187443995,-294.5666805,0.00025205,2]
[334547072,1723187444005,-153.0,0.00025205,2]
[334547073,1723187444015,-294.5666805,0.00025205,2]
[334547074,1723187444025,-294.5666805,0.00025205,2]
[334547075,1723187444034,-294.5666805,0.00025205,2]
[334547076,1723187444044,-294.5666805,0.00025205,2]
[334547077,1723187444053,-294.5666805,0.00025205,2]
[334547078,1723187444062,-294.5666805,0.00025205,2]
[334547079,1723187444072,-727.3151084,0.00025205,2]
[334547080,1723187444081,-151.0,0.00025283,3]
[334547081,1723187444090,-151.0,0.00025283,3]
[334547082,1723187444100,-620.00000667,0.00025317,2]
[334547083,1723187444110,-16588.72621919,0.0002538,10]
[334547084,1723187444120,-160.0,0.00025385,5]
[334547085,1723187444130,-150.702,0.00025391,2]
[334547086,1723187444139,-507.0,0.00025391,2]
[334547087,1723187444149,-3000.0,0.000254,2]
[334547088,1723187444160,-3000.0,0.0002541,2]
[334547089,1723187444171,-3000.0,0.0002542,2]
[334547090,1723187444181,-2605.33705453,0.00025421,2]
[334547091,1723187444191,-3000.0,0.0002543,2]
[334547092,1723187444200,-519.407902,0.0002543,7]
[334547093,1723187444210,-519.407902,0.0002543,7]
[334547094,1723187444219,-1170.804986,0.0002543,7]
[334547095,1723187444229,-1170.804986,0.0002543,7]
[334547096,1723187444238,-215.354607,0.0002543,7]
[334547097,1723187444247,-524.784304,0.0002543,7]